bitfinex-derivatives/quotes_ETHF0:USTF0_20250518
["timestamp","ask_amount","ask_price","bid_price","bid_amount"]
[1747533526021,2.13847,2483.2,2483.1,4.4679]
[1747533527428,2.13847,2483.2,2483.1,1.2601]
[1747533527623,2.13847,2483.2,2483.1,4.4679]
[1747533527824,0.6622,2483.4,2483.3,0.80504]
[1747533528024,1.45916,2483.6,2483.5,0.80497]
[1747533528226,1.3266,2483.6,2483.5,0.80497]
[1747533528430,4.68452053,2483.7,2483.6,0.80494]
[1747533528431,0.67180053,2483.7,2483.6,0.80494]
[1747533528729,0.67180053,2483.7,2483.6,9.3365685]
[1747533528926,0.67180053,2483.7,2483.6,9.9713685]
[1747533530329,1.47671053,2483.7,2483.6,9.1664285]
[1747533530830,1.47671053,2483.7,2483.6,9.9713685]
[1747533531031,0.67180053,2483.7,2483.6,9.9713685]
[1747533531625,0.67180053,2483.7,2483.6,16.4496285]
[1747533531831,0.80491,2483.7,2483.6,17.2545685]
[1747533532034,0.80485,2483.9,2483.7,0.80489]
[1747533532227,3.86285,2483.9,2483.8,3.95409033]
[1747533533432,5.17625,2483.9,2483.8,3.95409033]
[1747533534034,3.86285,2483.9,2483.8,3.95409033]
[1747533534836,3.86285,2483.9,2483.8,4.75897033]
[1747533534837,3.86284,2483.9,2483.8,4.75897033]
[1747533537239,3.86285,2483.9,2483.8,4.75897033]
[1747533538536,3.058,2483.9,2483.8,4.75897033]
[1747533539537,3.058,2483.9,2483.8,9.19035094]
[1747533541342,3.058,2483.9,2483.8,9.49396809]
[1747533542343,0.80479,2484.1,2484.0,0.8048]
[1747533542734,0.80479,2484.1,2484.0,3.46469033]
[1747533543236,3.86279,2484.1,2484.0,3.46469033]
[1747533544144,3.058,2484.1,2484.0,7.87043708]
[1747533544347,3.058,2484.1,2484.0,23.71143708]
[1747533545137,1.47649053,2484.4,2484.2,0.80473]
[1747533545442,1.47649053,2484.4,2484.3,4.79301033]
[1747533545739,0.80469,2484.4,2484.3,4.79301033]
[1747533545936,3.87960053,2484.6,2484.4,0.80468]
[1747533546137,4.68424053,2484.6,2484.5,2.65989033]
[1747533546441,4.68424053,2484.6,2484.5,3.46454033]
[1747533546631,4.68424053,2484.6,2484.5,0.80465]
[1747533546834,0.80466,2484.5,2484.4,0.80467]
[1747533547233,3.86266,2484.5,2484.4,3.46456033]
[1747533547946,3.058,2484.5,2484.4,3.46456033]
[1747533551048,4.4377,2484.5,2484.4,3.46456033]
[1747533552844,4.4377,2484.5,2484.4,0.80467]
[1747533553051,4.4377,2484.5,2484.4,3.46456033]
[1747533555445,5.24236,2484.5,2484.4,3.46456033]
[1747533555748,0.80469,2484.4,2484.3,8.7207]
[1747533555950,1.9368,2484.4,2484.3,9.02396749]
[1747533556339,4.9948,2484.4,2484.3,9.02396749]
[1747533557551,4.9948,2484.4,2484.3,11.68385782]
[1747533557854,4.9948,2484.4,2484.3,11.68414024]
[1747533558046,3.058,2484.4,2484.3,19.54997026]
[1747533558346,3.058,2484.4,2484.3,20.17537026]
[1747533558740,3.058,2484.4,2484.3,21.34892273]
[1747533559149,2.0305,2484.7,2484.6,0.80462]
[1747533559444,2.83509,2484.7,2484.6,2.65989033]
[1747533559654,2.83509,2484.7,2484.5,0.80464]
[1747533559655,0.80462,2484.6,2484.5,0.80464]
[1747533559954,2.08422,2484.6,2484.5,0.80464]
[1747533560150,2.08422,2484.6,2484.5,3.46453033]
[1747533560455,5.14222,2484.6,2484.5,0.80464]
[1747533562550,4.3376,2484.6,2484.5,0.80464]
[1747533563155,4.3376,2484.6,2484.5,3.46453033]
[1747533563354,3.058,2484.6,2484.5,3.76813992]
[1747533563550,3.058,2484.6,2484.5,3.46453033]
[1747533563854,3.058,2484.6,2484.5,3.76814108]
[1747533565065,3.058,2484.6,2484.5,3.76816691]
[1747533565964,3.86262,2484.6,2484.5,3.76816691]
[1747533566258,5.11002,2484.6,2484.5,3.76816691]
[1747533566559,5.11002,2484.6,2484.5,1.10827658]
[1747533566759,4.3054,2484.6,2484.5,1.10827658]
[1747533567055,3.058,2484.6,2484.5,3.76816691]
[1747533567261,3.058,2484.6,2484.5,8.07379645]
[1747533567558,3.058,2484.6,2484.5,9.38729645]
[1747533568153,0.6609,2484.8,2484.7,0.80459]
[1747533568353,0.6609,2484.8,2484.7,11.65618525]
[1747533568656,0.6609,2484.8,2484.7,11.65623974]
[1747533568955,0.6609,2484.8,2484.7,12.93983974]
[1747533569163,3.7189,2484.8,2484.7,12.93983974]
[1747533570461,3.7189,2484.8,2484.7,14.11448295]
[1747533572363,3.7189,2484.8,2484.7,18.58925073]
[1747533574162,3.7189,2484.8,2484.7,18.58938648]
[1747533574362,3.81108003,2484.8,2484.7,18.58938648]
[1747533577163,4.61564003,2484.8,2484.7,8.61319648]
[1747533577554,4.61564003,2484.8,2484.7,9.41778648]
[1747533579563,4.61564003,2484.8,2484.7,9.41802948]
[1747533581365,4.61564003,2484.8,2484.7,9.4180465]
[1747533582871,3.81108003,2484.8,2484.7,9.4180465]
[1747533583272,3.81108003,2484.8,2484.7,9.41803826]
[1747533583473,3.81108003,2484.8,2484.7,10.66813826]
[1747533585177,3.81108003,2484.8,2484.7,10.66814897]
[1747533585366,3.15018003,2484.8,2484.7,10.66814897]
[1747533588774,3.15018003,2484.8,2484.7,10.66794764]
[1747533590280,1.66673719,2485.7,2485.3,2.65989033]
[1747533590572,2.33433719,2485.7,2485.4,28.53905279]
[1747533590974,2.33433719,2485.7,2485.4,24.09644532]
[1747533591174,6.27164483,2485.5,2485.4,28.37020938]
[1747533591979,3.058,2485.5,2485.4,29.54482703]
[1747533595976,3.058,2485.5,2485.4,29.24084204]
[1747533596175,3.058,2485.5,2485.4,29.54367385]
[1747533596376,3.058,2485.5,2485.4,34.54367385]
[1747533597269,0.6861,2485.8,2485.4,33.73930385]
[1747533597470,0.6861,2485.8,2485.7,6.67196033]
[1747533597976,0.6861,2485.8,2485.7,11.11675625]
[1747533598183,3.7441,2485.8,2485.7,11.11675625]
[1747533598481,3.7441,2485.8,2485.7,12.39765625]
[1747533599279,3.7441,2485.8,2485.7,16.31686592]
[1747533599483,4.54834,2485.8,2485.7,18.9678]
[1747533599680,4.54834,2485.8,2485.7,11.0678]
[1747533600480,3.7441,2485.8,2485.7,11.87207]
[1747533600680,4.54834,2485.8,2485.7,11.87207]
[1747533600881,5.90334,2485.8,2485.7,11.0678]
[1747533601081,5.90334,2485.8,2485.7,11.87207]
[1747533601382,5.90334,2485.8,2485.7,0.80427]
[1747533601582,5.90334,2485.8,2485.7,8.66427]
[1747533601876,0.80428,2485.7,2485.6,0.8043]
[1747533602085,2.12588,2485.7,2485.6,8.6633]
[1747533602279,1.3216,2485.7,2485.6,8.6633]
[1747533602878,3.7441,2485.8,2485.7,0.80427]
[1747533603085,3.058,2485.8,2485.7,4.79556033]
[1747533603284,1.9895,2486.0,2485.9,0.8042]
[1747533603487,2.6394,2486.0,2485.9,11.37609033]
[1747533603679,2.6394,2486.0,2485.9,13.03315624]
[1747533604281,0.80426,2485.8,2485.3,5.21873]
[1747533604589,0.80425,2485.8,2485.7,5.15542562]
[1747533604786,0.89643003,2485.8,2485.7,4.35116562]
[1747533605082,0.8043,2485.6,2485.5,0.80431]
[1747533605287,0.80429,2485.7,2485.6,0.80429]
[1747533606184,3.86229,2485.7,2485.6,0.80429]
[1747533606578,3.058,2485.7,2485.6,0.80429]
[1747533606978,3.058,2485.7,2485.6,2.12599]
[1747533607689,3.058,2485.7,2485.6,9.36319155]
[1747533608088,3.058,2485.7,2485.6,12.57099155]
[1747533608493,3.058,2485.7,2485.6,12.87377184]
[1747533609985,3.058,2485.7,2485.6,12.87379857]
[1747533612679,3.058,2485.7,2485.6,14.04387181]
[1747533613090,3.058,2485.7,2485.6,14.04412429]
[1747533613490,3.058,2485.7,2485.6,13.74106479]
[1747533613684,3.058,2485.7,2485.6,14.04421495]
[1747533618689,3.058,2485.7,2485.6,21.90221495]
[1747533618892,3.058,2485.7,2485.6,29.78221495]
[1747533619088,3.058,2485.7,2485.6,29.78290536]
[1747533620499,3.058,2485.7,2485.6,30.97767572]
[1747533620701,3.058,2485.7,2485.6,30.97167572]
[1747533620998,3.15018003,2485.7,2485.6,30.97192618]
[1747533621200,3.15018003,2485.7,2485.6,12.58003585]
[1747533621395,3.15018003,2485.7,2485.6,27.00433585]
[1747533622403,3.15018003,2485.7,2485.6,31.03852618]
[1747533622697,3.15018003,2485.7,2485.6,32.32780763]
[1747533623096,3.15018003,2485.7,2485.6,32.73191505]
[1747533624105,0.09218003,2485.7,2485.6,32.73191505]
[1747533624403,0.09218003,2485.7,2485.6,32.73189922]
[1747533626200,3.15018003,2485.7,2485.6,30.82896479]
[1747533626408,3.15018003,2485.7,2485.6,31.13296079]
[1747533627107,3.15018003,2485.7,2485.6,31.13293955]
[1747533628207,3.15018003,2485.7,2485.6,31.13291915]
[1747533631208,0.09218003,2485.7,2485.6,31.13291915]
[1747533635409,0.09218003,2485.7,2485.6,31.132745]
[1747533636807,0.09218003,2485.7,2485.6,31.120745]
[1747533637207,0.09218003,2485.7,2485.6,31.1208107]
[1747533637609,12.06220984,2487.0,2485.7,2.01065]
[1747533637913,1.9794,2486.5,2486.4,4.01184]
[1747533638114,0.6347,2486.5,2486.4,22.71357624]
[1747533638310,0.6881,2486.8,2486.7,0.80395]
[1747533638515,0.6881,2486.8,2486.7,4.31559591]
[1747533638714,0.6881,2486.8,2486.7,8.89389925]
[1747533638912,1.9912,2486.8,2486.7,24.63789925]
[1747533639118,5.0492,2486.8,2486.7,21.4295929]
[1747533639512,5.0492,2486.8,2486.7,5.6855929]
[1747533639717,5.0492,2486.8,2486.7,14.72866614]
[1747533640312,5.0492,2486.8,2486.7,10.1503628]
[1747533640712,5.0492,2486.8,2486.7,1.4734128]
[1747533640917,0.80395,2486.7,2486.6,1.19497486]
[1747533641114,1.3031,2486.7,2486.6,1.19497486]
[1747533641419,6.3031,2486.7,2486.6,1.19497486]
[1747533641619,6.3031,2486.7,2486.6,1.99895486]
[1747533642116,10.16505,2486.7,2486.6,1.19497486]
[1747533643018,10.16505,2486.7,2486.6,1.99895486]
[1747533643019,9.3611,2486.7,2486.6,1.99895486]
[1747533643416,10.16505,2486.7,2486.6,1.99895486]
[1747533643620,9.3611,2486.7,2486.6,1.99895486]
[1747533644021,9.3611,2486.7,2486.6,0.80398]
[1747533645014,0.80398,2486.6,2486.5,1.5463]
[1747533645215,5.24568,2486.6,2486.5,1.5463]
[1747533645416,10.24568,2486.6,2486.5,1.5463]
[1747533647432,0.80414,2486.1,2486.0,1.19497486]
[1747533647825,0.80414,2486.1,2486.0,1.99914486]
[1747533648119,0.80414,2486.1,2485.9,1.19497486]
[1747533648120,0.80417,2486.0,2485.9,1.19497486]
[1747533648335,2.74187,2486.0,2485.9,1.19497486]
[1747533648515,7.74187,2486.0,2485.9,1.19497486]
[1747533649118,10.79987,2486.0,2485.9,1.19497486]
[1747533650722,0.8042,2485.9,2485.8,3.2573]
[1747533651026,2.0641,2485.9,2485.8,3.2573]
[1747533651225,7.0641,2485.9,2485.8,3.2573]
[1747533651422,7.0641,2485.9,2485.8,0.0495]
[1747533652131,10.1221,2485.9,2485.8,0.0495]
[1747533655433,5.1221,2485.9,2485.8,0.0495]
[1747533655629,5.1221,2485.9,2485.8,0.85374]
[1747533655829,4.3179,2485.9,2485.8,0.85374]
[1747533656031,5.1221,2485.9,2485.8,0.0495]
[1747533656935,10.1221,2485.9,2485.8,0.0495]
[1747533660225,5.1221,2485.9,2485.8,0.0495]
[1747533661138,4.3179,2485.9,2485.8,0.0495]
[1747533661435,4.3179,2485.9,2485.8,0.85374]
[1747533661436,5.1221,2485.9,2485.8,0.85374]
[1747533661634,3.058,2485.9,2485.8,3.51363033]
[1747533662136,3.058,2485.9,2485.8,13.31750113]
[1747533662333,3.058,2485.9,2485.8,9.64230113]
[1747533663036,3.058,2485.9,2485.8,25.11450423]
[1747533663726,3.8622,2485.9,2485.8,24.31426423]
[1747533663931,3.058,2485.9,2485.8,20.61743033]
[1747533664234,3.058,2485.9,2485.8,24.95671489]
[1747533664434,1.0059331,2486.5,2486.4,0.80404]
[1747533664636,1.0059331,2486.5,2486.4,3.46393033]
[1747533665239,4.0639331,2486.5,2486.4,6.01933033]
[1747533666141,4.8679431,2486.5,2486.4,5.21529033]
[1747533668244,3.86201,2486.5,2486.4,5.21529033]
[1747533669047,3.058,2486.5,2486.4,6.01933033]
[1747533669749,3.86201,2486.5,2486.4,2.5554]
[1747533671248,0.80407,2486.3,2486.2,0.80411]
[1747533671643,2.17866,2486.4,2486.0,10.5739]
[1747533671843,2.17866,2486.4,2486.3,0.80407]
[1747533672141,5.23666,2486.4,2486.3,0.80407]
[1747533672443,3.058,2486.4,2486.3,2.06347]
[1747533674050,3.86204,2486.4,2486.3,2.06347]
[1747533674454,3.86204,2486.4,2486.3,1.2594]
[1747533675055,0.80407,2486.3,2486.2,0.0579]
[1747533675351,5.21447,2486.3,2486.2,0.0579]
[1747533675548,11.53977,2486.3,2486.2,0.0579]
[1747533676863,0.8042,2485.9,2485.8,0.6522]
[1747533677161,0.80424,2485.8,2485.7,0.6339]
[1747533677362,2.15664,2485.8,2485.7,0.6339]
[1747533677561,0.80423,2485.9,2485.7,4.62169033]
[1747533677750,0.09218003,2485.9,2485.8,2.13212]
[1747533677956,0.09218003,2485.9,2485.8,4.79201033]
[1747533678154,3.15018003,2485.9,2485.8,4.79201033]
[1747533678360,3.15018003,2485.9,2485.8,9.64589311]
[1747533678561,3.15018003,2485.9,2485.8,9.64588275]
[1747533679662,3.058,2485.9,2485.8,9.64588275]
[1747533680262,3.058,2485.9,2485.8,17.52199385]
[1747533681261,3.8622,2485.9,2485.8,16.71777385]
[1747533681460,3.8622,2485.9,2485.8,2.65989033]
[1747533681658,0.80424,2485.8,2485.7,0.6339]
[1747533681859,2.13864,2485.8,2485.7,3.29379033]
[1747533682164,5.19664,2485.8,2485.7,4.57249033]
[1747533682466,5.19664,2485.8,2485.7,4.8762842]
[1747533683165,5.19664,2485.8,2485.7,3.93859033]
[1747533684058,5.19664,2485.8,2485.7,4.24243551]
[1747533684257,5.19664,2485.8,2485.7,2.96373551]
[1747533684959,5.19664,2485.8,2485.7,0.30384518]
[1747533685160,0.80427,2485.7,2485.6,1.19497486]
[1747533685364,2.75447,2485.7,2485.6,1.19497486]
[1747533686064,7.75447,2485.7,2485.6,1.19497486]
[1747533686264,10.81247,2485.7,2485.6,1.19497486]
[1747533686465,0.80433,2485.5,2485.4,5.30294]
[1747533686670,0.80433,2485.5,2485.4,5.60687224]
[1747533686963,0.80433,2485.5,2485.4,5.30294]
[1747533687161,3.86233,2485.5,2485.4,4.4986]
[1747533687361,0.80437,2485.4,2485.3,7.905]
[1747533687566,2.73217,2485.4,2485.3,7.905]
[1747533687767,2.73217,2485.4,2485.3,10.56489033]
[1747533688263,5.79017,2485.4,2485.3,11.87749033]
[1747533688460,5.79017,2485.4,2485.3,12.68189033]
[1747533688661,5.79017,2485.4,2485.3,10.56489033]
[1747533689361,5.79017,2485.4,2485.3,3.97249033]
[1747533690566,3.058,2485.4,2485.3,4.77689033]
[1747533691072,3.058,2485.4,2485.3,5.08062498]
[1747533691573,3.058,2485.4,2485.3,5.08061254]
[1747533693378,3.058,2485.4,2485.3,5.08057339]
[1747533694870,3.058,2485.4,2485.3,12.99157339]
[1747533695072,2.4918,2485.4,2485.3,22.5815718]
[1747533695371,0.80422,2485.9,2485.7,0.80425]
[1747533695562,0.80422,2485.9,2485.8,2.6749]
[1747533695874,0.80422,2485.9,2485.8,5.33479033]
[1747533696174,3.86222,2485.9,2485.8,5.33479033]
[1747533698275,3.86222,2485.9,2485.8,6.13903033]
[1747533698477,3.86222,2485.9,2485.8,5.33479033]
[1747533698869,5.24392,2485.9,2485.8,5.33479033]
[1747533701176,5.24392,2485.9,2485.8,6.13903033]
[1747533701477,0.80424,2485.8,2485.7,1.2779]
[1747533701682,2.74504,2485.8,2485.7,1.2779]
[1747533701976,1.9408,2485.8,2485.5,2.83862]
[1747533702165,0.80433,2485.5,2485.4,3.2078]
[1747533702370,0.80433,2485.5,2485.4,6.17169656]
[1747533702779,0.80433,2485.5,2485.4,2.96389656]
[1747533703072,3.86233,2485.5,2485.4,2.96389656]
[1747533703775,0.80437,2485.4,2485.3,12.41237486]
[1747533703973,2.21745003,2485.4,2485.3,13.87729033]
[1747533704175,5.27545003,2485.4,2485.3,13.87729033]
[1747533704477,5.27545003,2485.4,2485.3,14.18147031]
[1747533704682,5.27545003,2485.4,2485.3,13.87729033]
[1747533705479,5.27545003,2485.4,2485.3,11.2174]
[1747533705682,5.27545003,2485.4,2485.3,4.59369033]
[1747533708985,3.95455003,2485.4,2485.3,6.69299033]
[1747533709485,3.95455003,2485.4,2485.3,5.88859033]
[1747533710280,3.95455003,2485.4,2485.3,3.2287]
[1747533710481,3.95455003,2485.4,2485.3,1.2781]
[1747533710882,0.80443,2485.2,2485.1,0.6859]
[1747533711083,0.80443,2485.2,2485.1,3.64994636]
[1747533711582,2.15893,2485.2,2485.1,3.64994636]
[1747533711783,2.15893,2485.2,2485.1,2.15876371]
[1747533712279,5.21693,2485.2,2485.1,2.15876371]
[1747533712479,5.21693,2485.2,2485.1,1.85460768]
[1747533713980,0.80446,2485.1,2485.0,9.1832]
[1747533714184,2.10466,2485.1,2485.0,1.5823997]
[1747533714383,2.10466,2485.1,2485.0,4.24229003]
[1747533714687,2.10466,2485.1,2485.0,1.5823997]
[1747533715187,5.16266,2485.1,2485.0,1.2782]
[1747533716079,0.80453,2484.9,2484.8,3.2078]
[1747533716279,0.80453,2484.9,2484.8,5.86769033]
[1747533716478,0.80453,2484.9,2484.8,3.51201733]
[1747533716685,2.09722,2485.0,2484.8,6.17190766]
[1747533716892,2.09722,2485.0,2484.9,4.04009033]
[1747533717190,5.15522,2485.0,2484.9,4.04009033]
[1747533718385,5.15522,2485.0,2484.9,4.84462033]
[1747533719693,3.058,2485.0,2484.9,5.14861904]
[1747533720483,3.058,2485.0,2484.9,22.56139719]
[1747533720682,3.058,2485.0,2484.9,22.25739848]
[1747533720901,3.058,2485.0,2484.9,23.72877841]
[1747533721095,1.90248313,2485.4,2485.2,0.80441]
[1747533721394,1.90248313,2485.4,2485.3,5.26789033]
[1747533721587,1.09811313,2485.4,2485.0,7.894]
[1747533721794,2.065,2485.3,2485.2,2.65989033]
[1747533722193,0.80443,2485.2,2485.1,1.2889]
[1747533722597,0.80443,2485.2,2485.1,3.94879033]
[1747533722794,2.06503,2485.2,2485.1,3.94879033]
[1747533723096,5.12303,2485.2,2485.1,3.94879033]
[1747533723700,0.80446,2485.1,2485.0,0.6271]
[1747533723990,2.10356,2485.1,2485.0,3.03552092]
[1747533724202,4.3571,2485.1,2485.0,5.69541125]
[1747533724699,5.16156,2485.1,2485.0,4.89091125]
[1747533724896,4.3571,2485.1,2484.7,10.36727486]
[1747533725092,0.80456,2484.8,2484.7,2.47327486]
[1747533725398,4.01236,2484.8,2484.7,2.47327486]
[1747533726089,1.2991,2484.9,2484.7,3.27784486]
[1747533726390,3.86256,2484.8,2484.7,1.2783]
[1747533728788,0.80459,2484.7,2484.6,1.2998]
[1747533728993,2.14959,2484.7,2484.6,1.2998]
[1747533729196,5.20759,2484.7,2484.6,1.2998]
[1747533729585,0.80463,2484.6,2484.5,1.9286]
[1747533729790,2.83133,2484.6,2484.5,1.2783]
[1747533730190,0.80466,2484.5,2484.4,0.6912]
[1747533730497,2.12446,2484.5,2484.4,0.6912]
[1747533731097,5.18246,2484.5,2484.4,0.6912]
[1747533731396,0.80469,2484.4,2484.3,1.2784]
[1747533731591,2.12449,2484.4,2484.3,3.93829033]
[1747533731792,2.12449,2484.4,2484.3,1.2784]
[1747533732092,0.80472,2484.3,2484.2,5.1469]
[1747533732294,2.12452,2484.3,2484.2,3.8812]
[1747533732493,0.80475,2484.2,2484.1,1.19497486]
[1747533732688,2.80815,2484.2,2484.1,2.47347486]
[1747533733195,5.86615,2484.2,2484.1,2.47347486]
[1747533734391,5.86615,2484.2,2484.1,1.19497486]
[1747533734894,0.80482,2484.0,2483.9,1.3144]
[1747533735296,0.80482,2484.0,2483.9,3.97429033]
[1747533735492,0.80482,2484.0,2483.9,4.77914033]
[1747533735693,3.058,2484.2,2484.1,0.80479]
[1747533735894,3.058,2484.2,2484.1,3.46468033]
[1747533736093,0.80475,2484.3,2484.2,0.80475]
[1747533736294,0.80475,2484.3,2484.2,4.71804033]
[1747533736499,0.80471,2484.4,2484.3,0.80471]
[1747533736799,0.80471,2484.4,2484.3,3.91329033]
[1747533737196,3.86271,2484.4,2484.3,3.91329033]
[1747533737697,3.058,2484.4,2484.3,4.71801033]
[1747533738000,3.058,2484.4,2484.3,5.02189382]
[1747533738203,0.80463,2484.6,2484.5,0.80466]
[1747533738503,1.0059331,2484.7,2484.6,0.80462]
[1747533738691,1.33827484,2485.0,2484.9,0.80453]
[1747533738890,1.33827484,2485.0,2484.9,6.67222033]
[1747533740003,2.14277484,2485.0,2484.9,5.86769033]
[1747533740404,2.14277484,2485.0,2484.9,7.16859033]
[1747533740807,1.33827484,2485.0,2484.9,7.97312033]
[1747533741003,7.19596053,2485.1,2485.0,0.8045]
[1747533741312,7.19596053,2485.1,2485.0,4.76529033]
[1747533741509,0.80446,2485.1,2485.0,3.96079033]
[1747533742202,1.2855,2485.4,2485.0,3.96079033]
[1747533742403,0.80437,2485.4,2485.3,2.65989033]
[1747533742806,0.80437,2485.4,2485.3,4.01479033]
[1747533743007,5.1501,2485.7,2485.3,4.01479033]
[1747533743208,0.8043,2485.6,2485.5,2.65989033]
[1747533743709,0.80435,2485.5,2485.3,2.1593]
[1747533743910,0.80432,2485.6,2485.5,2.65989033]
[1747533744206,4.4717,2485.7,2485.5,2.65989033]
[1747533744207,3.2078,2485.7,2485.6,3.46419033]
[1747533744507,0.80423,2485.9,2485.6,4.09756033]
[1747533744704,2.14246484,2486.0,2485.8,2.65989033]
[1747533744898,2.14246484,2486.0,2485.7,1.3549]
[1747533744899,2.14246484,2486.0,2485.9,2.65989033]
[1747533745112,4.39627484,2486.0,2485.9,2.65989033]
[1747533745407,4.39627484,2486.0,2485.9,3.46409033]
[1747533745609,4.39627484,2486.0,2485.9,4.79749033]
[1747533746106,5.20044484,2486.0,2485.9,4.79749033]
[1747533746811,3.058,2486.0,2485.9,4.79749033]
[1747533747305,3.058,2486.0,2485.9,14.55987655]
[1747533747607,3.058,2486.0,2485.9,14.55980216]
[1747533747809,3.058,2486.0,2485.9,14.25686913]
[1747533748011,3.058,2486.0,2485.9,15.7226167]
[1747533748206,1.33827484,2486.4,2486.3,0.80407]
[1747533748404,1.33827484,2486.4,2486.3,11.39696033]
[1747533748608,1.33827484,2486.4,2486.3,20.9388468]
[1747533748802,1.33827484,2486.4,2486.3,23.6505468]
[1747533749001,1.33827484,2486.4,2486.3,23.95304597]
[1747533749205,1.33827484,2486.4,2486.3,23.6505468]
[1747533749709,1.33827484,2486.4,2486.3,18.6375468]
[1747533750101,1.33827484,2486.4,2486.3,10.7175468]
[1747533750311,5.20031484,2486.4,2486.3,17.8334768]
[1747533750811,3.86204,2486.4,2486.3,9.2772]
[1747533751607,3.86204,2486.4,2486.3,7.92]
[1747533751801,0.80407,2486.3,2486.2,1.2773]
[1747533752003,2.80487,2486.3,2486.2,1.2773]
[1747533752306,0.80418,2486.0,2485.8,0.80423]
[1747533752507,0.8042,2485.9,2485.8,1.2684]
[1747533753107,3.8622,2485.9,2485.8,1.2684]
[1747533753310,3.058,2485.9,2485.8,2.07264]
[1747533754106,3.8622,2485.9,2485.8,1.2684]
[1747533755406,0.80424,2485.8,2485.7,9.1976]
[1747533755602,2.14414,2485.8,2485.7,11.85749033]
[1747533756101,5.20214,2485.8,2485.7,9.1976]
[1747533756512,5.20214,2485.8,2485.7,11.85749033]
[1747533756909,3.058,2485.8,2485.7,12.66176033]
[1747533757115,3.058,2485.8,2485.7,16.86377778]
[1747533759118,0.09218003,2486.3,2486.2,0.80411]
[1747533759314,0.09218003,2486.3,2486.2,22.58780033]
[1747533759516,0.80383,2487.1,2486.2,31.21278256]
[1747533759816,0.80383,2487.1,2486.9,0.80385]
[1747533760015,0.80381,2487.2,2487.0,2.14935]
[1747533760218,2.12321,2487.2,2487.0,2.14935]
[1747533760524,0.80382,2487.1,2487.0,1.3455]
[1747533761109,3.86182,2487.1,2487.0,2.14935]
[1747533761309,3.058,2487.1,2487.0,8.01704033]
[1747533761509,3.058,2487.1,2487.0,7.21319033]
[1747533761711,3.058,2487.1,2487.0,8.01704033]
[1747533762114,3.86182,2487.1,2487.0,2.65989033]
[1747533762618,0.80389,2486.9,2486.7,3.8573]
[1747533762813,0.80389,2486.9,2486.8,2.65989033]
[1747533763014,1.338,2486.8,2486.4,11.1258]
[1747533763213,0.804,2486.6,2486.5,2.65989033]
[1747533763417,0.80401,2486.5,2486.4,3.2078]
[1747533763617,0.80396,2486.7,2486.5,0.80399]
[1747533763818,2.14446,2486.7,2486.5,0.80399]
[1747533764219,5.20245,2486.7,2486.5,0.804]
[1747533764413,5.20245,2486.7,2486.4,3.2078]
[1747533764818,5.20245,2486.7,2486.5,0.804]
[1747533765620,4.3985,2486.7,2486.6,0.80398]
[1747533765817,3.058,2486.7,2486.6,3.46387033]
[1747533766120,3.86195,2486.7,2486.6,2.65989033]
[1747533766321,5.13415,2486.7,2486.6,2.65989033]
[1747533766719,4.3302,2486.7,2486.6,3.46387033]
[1747533767020,4.3302,2486.7,2486.6,2.65989033]
[1747533767021,5.13415,2486.7,2486.6,2.65989033]
[1747533767619,0.804,2486.6,2486.4,4.01183]
[1747533767818,1.2722,2486.5,2486.4,6.67172033]
[1747533768009,1.2722,2486.5,2486.4,4.01183]
[1747533768217,4.3302,2486.5,2486.4,4.01183]
[1747533770721,4.3302,2486.5,2486.4,0.80403]
[1747533771224,3.058,2486.5,2486.4,0.80403]
[1747533771521,3.058,2486.5,2486.4,3.46392033]
[1747533772319,3.058,2486.5,2486.4,3.76708596]
[1747533773924,3.058,2486.5,2486.4,6.97501743]
[1747533774118,3.058,2486.5,2486.4,8.14067982]
[1747533775127,3.058,2486.5,2486.4,9.41237982]
[1747533775323,3.058,2486.5,2486.4,26.63431452]
[1747533775818,3.058,2486.5,2486.4,26.63449377]
[1747533776225,0.09218003,2486.7,2486.6,0.80398]
[1747533776427,0.09218003,2486.7,2486.6,11.77534668]
[1747533776732,0.09218003,2486.7,2486.6,16.282794]
[1747533777528,0.09218003,2486.7,2486.6,16.28269771]
[1747533778937,0.09218003,2486.7,2486.6,17.4483601]
[1747533779233,0.09218003,2486.7,2486.6,17.44825471]
[1747533779734,0.09218003,2486.7,2486.6,9.44025471]
[1747533780035,0.09218003,2486.7,2486.6,25.46925471]
[1747533780532,0.09218003,2486.7,2486.6,26.66432598]
[1747533781033,0.09218003,2486.7,2486.6,3.467999]
[1747533781235,5.10948003,2486.7,2486.6,3.16471366]
[1747533781420,5.91343003,2486.7,2486.6,2.36073366]
[1747533781820,5.91343003,2486.7,2486.6,1.19507127]
[1747533783837,5.91343003,2486.7,2486.6,0.80398]
[1747533784035,5.10948003,2486.7,2486.4,11.2158]
[1747533784336,5.91343003,2486.7,2486.6,0.80398]
[1747533784937,0.80399,2486.6,2486.5,0.80399]
[1747533785135,5.18849,2486.6,2486.5,0.80399]
[1747533786139,0.80401,2486.5,2486.4,8.008]
[1747533786341,2.13051,2486.5,2486.4,8.31180742]
[1747533786537,2.13051,2486.5,2486.4,0.30380742]
[1747533786731,6.3265,2486.5,2486.3,1.2771]
[1747533786931,0.63,2486.4,2486.3,2.08117]
[1747533787129,1.9565,2486.4,2486.3,3.76785906]
[1747533787434,3.058,2486.5,2486.4,0.80404]
[1747533787628,3.058,2486.5,2486.4,5.07452906]
[1747533787833,3.058,2486.5,2486.4,2.41463873]
[1747533788340,3.058,2486.5,2486.4,5.07452906]
[1747533788538,3.058,2486.5,2486.4,9.29864838]
[1747533789335,3.058,2486.5,2486.4,9.48015368]
[1747533789529,3.058,2486.5,2486.4,9.48034928]
[1747533789724,3.86201,2486.5,2486.4,9.48034928]
[1747533790231,3.86201,2486.5,2486.4,1.47234928]
[1747533790738,3.86201,2486.5,2486.4,1.16825495]
[1747533791143,3.058,2486.5,2486.3,2.87029982]
[1747533791334,3.058,2486.5,2486.4,7.79342434]
[1747533791538,3.058,2486.5,2486.4,9.47192949]
[1747533792132,5.30058003,2486.7,2486.6,0.80398]